[Event "Titled Tuesday Blitz February 22 Late 2022"]
[White "Debray, Christopher"]
[Black "Salimova, Nurgyul"]
[WhiteFideId "630810"]
[BlackFideId "2915138"]
[WhiteElo "2369"]
[BlackElo "2185"]
[Result "1-0"]
[Round "09"]
[TimeControl "180+1"]
[Date "2022.02.23"]
[WhiteClock "0:00:05"]
[BlackClock "0:00:17"]

1. d4 {[%clk 0:03:00]}  Nf6 {[%clk 0:02:59]} 2. c4 {[%clk 0:02:58]}  g6 {[%clk 0:02:59]} 3. Nc3 {[%clk 0:02:57]}  d5 {[%clk 0:02:59]} 4. Nf3 {[%clk 0:02:57]}  Bg7 {[%clk 0:02:59]} 5. e3 {[%clk 0:02:57]}  O-O {[%clk 0:02:58]} 6. Be2 {[%clk 0:02:54]}  c5 {[%clk 0:02:58]} 7. dxc5 {[%clk 0:02:55]}  dxc4 {[%clk 0:02:55]} 8. O-O {[%clk 0:02:55]}  Qa5 {[%clk 0:02:51]} 9. Qd4 {[%clk 0:02:55]}  Be6 {[%clk 0:02:44]} 10. Ng5 {[%clk 0:02:53]}  Nc6 {[%clk 0:02:43]} 11. Qh4 {[%clk 0:02:53]}  Bd7 {[%clk 0:02:26]} 12. Bd2 {[%clk 0:02:53]}  h6 {[%clk 0:02:20]} 13. Nge4 {[%clk 0:02:49]}  Qc7 {[%clk 0:01:29]} 14. Nxf6+ {[%clk 0:02:44]}  exf6 {[%clk 0:01:22]} 15. Bxc4 {[%clk 0:02:32]}  Ne5 {[%clk 0:01:22]} 16. Bb3 {[%clk 0:02:24]}  Qxc5 {[%clk 0:01:21]} 17. Rac1 {[%clk 0:02:22]}  Nd3 {[%clk 0:01:14]} 18. Rc2 {[%clk 0:02:05]}  Qg5 {[%clk 0:01:13]} 19. Qd4 {[%clk 0:01:57]}  Bc6 {[%clk 0:01:13]} 20. Nd5 {[%clk 0:01:42]}  Rad8 {[%clk 0:00:54]} 21. e4 {[%clk 0:01:40]}  Nf4 {[%clk 0:00:50]} 22. Bxf4 {[%clk 0:01:17]}  Qxf4 {[%clk 0:00:49]} 23. Nxf4 {[%clk 0:01:17]}  Rxd4 {[%clk 0:00:49]} 24. Nxg6 {[%clk 0:00:52]}  Bxe4 {[%clk 0:00:47]} 25. Nxf8 {[%clk 0:00:52]}  Bxc2 {[%clk 0:00:46]} 26. Bxc2 {[%clk 0:00:50]}  Bxf8 {[%clk 0:00:43]} 27. Rd1 {[%clk 0:00:50]}  Rc4 {[%clk 0:00:35]} 28. Bb3 {[%clk 0:00:47]}  Rc7 {[%clk 0:00:35]} 29. Kf1 {[%clk 0:00:41]}  Bc5 {[%clk 0:00:34]} 30. g3 {[%clk 0:00:22]}  Kg7 {[%clk 0:00:34]} 31. Kg2 {[%clk 0:00:22]}  b6 {[%clk 0:00:33]} 32. Kf3 {[%clk 0:00:22]}  f5 {[%clk 0:00:33]} 33. Rd5 {[%clk 0:00:20]}  Kf6 {[%clk 0:00:32]} 34. Bc2 {[%clk 0:00:19]}  Bxf2 {[%clk 0:00:30]} 35. Bxf5 {[%clk 0:00:10]}  Bc5 {[%clk 0:00:28]} 36. Bd3 {[%clk 0:00:09]}  Re7 {[%clk 0:00:28]} 37. Be4 {[%clk 0:00:06]}  Rc7 {[%clk 0:00:29]} 38. Bd3 {[%clk 0:00:06]}  a5 {[%clk 0:00:28]} 39. a4 {[%clk 0:00:05]}  Ke6 {[%clk 0:00:28]} 40. Bc4 {[%clk 0:00:05]}  Kf6 {[%clk 0:00:28]} 41. h3 {[%clk 0:00:04]}  Bb4 {[%clk 0:00:28]} 42. Bd3 {[%clk 0:00:04]}  Bc5 {[%clk 0:00:28]} 43. Be4 {[%clk 0:00:03]}  Ke6 {[%clk 0:00:27]} 44. Rd3 {[%clk 0:00:02]}  f5 {[%clk 0:00:26]} 45. Bd5+ {[%clk 0:00:02]}  Ke5 {[%clk 0:00:26]} 46. Bc4 {[%clk 0:00:02]}  Bd4 {[%clk 0:00:27]} 47. b3 {[%clk 0:00:02]}  Rg7 {[%clk 0:00:26]} 48. Rd1 {[%clk 0:00:02]}  h5 {[%clk 0:00:23]} 49. Re1+ {[%clk 0:00:02]}  Kd6 {[%clk 0:00:22]} 50. Re6+ {[%clk 0:00:02]}  Kc5 {[%clk 0:00:23]} 51. Rh6 {[%clk 0:00:03]}  Re7 {[%clk 0:00:23]} 52. Rxh5 {[%clk 0:00:03]}  Re3+ {[%clk 0:00:24]} 53. Kf4 {[%clk 0:00:03]}  Re1 {[%clk 0:00:24]} 54. Rxf5+ {[%clk 0:00:03]}  Kb4 {[%clk 0:00:25]} 55. g4 {[%clk 0:00:04]}  Be3+ {[%clk 0:00:24]} 56. Kf3 {[%clk 0:00:04]}  Kc3 {[%clk 0:00:25]} 57. g5 {[%clk 0:00:03]}  Bd4 {[%clk 0:00:24]} 58. h4 {[%clk 0:00:03]}  Rh1 {[%clk 0:00:24]} 59. Kg4 {[%clk 0:00:03]}  Kd2 {[%clk 0:00:20]} 60. h5 {[%clk 0:00:04]}  Ke3 {[%clk 0:00:20]} 61. h6 {[%clk 0:00:04]}  Rg1+ {[%clk 0:00:21]} 62. Kh5 {[%clk 0:00:04]}  Rh1+ {[%clk 0:00:21]} 63. Kg6 {[%clk 0:00:05]}  Ke4 {[%clk 0:00:22]} 64. Rf7 {[%clk 0:00:05]}  Be3 {[%clk 0:00:22]} 65. h7 {[%clk 0:00:05]}  Rg1 {[%clk 0:00:18]} 66. Re7+ {[%clk 0:00:05]}  Kd4 {[%clk 0:00:17]} 67. h8=Q+ {[%clk 0:00:05]} 1-0


[Site "https://www.chess.com"]

[Event "Titled Tuesday Blitz February 22 Late 2022"]
[White "Djokic, Mihailo"]
[Black "Nasuta, Grzegorz"]
[WhiteFideId "976440"]
[BlackFideId "1141686"]
[WhiteElo "2008"]
[BlackElo "2396"]
[Result "1-0"]
[Round "09"]
[TimeControl "180+1"]
[Date "2022.02.22"]
[WhiteClock "0:01:05"]
[BlackClock "0:00:03"]

1. e4 {[%clk 0:03:00]}  c5 {[%clk 0:02:59]} 2. Nf3 {[%clk 0:03:01]}  e6 {[%clk 0:02:59]} 3. d4 {[%clk 0:03:01]}  cxd4 {[%clk 0:03:00]} 4. Nxd4 {[%clk 0:03:01]}  Nf6 {[%clk 0:03:00]} 5. Nc3 {[%clk 0:03:01]}  d6 {[%clk 0:03:00]} 6. f4 {[%clk 0:03:00]}  Nc6 {[%clk 0:02:57]} 7. Be2 {[%clk 0:02:59]}  Be7 {[%clk 0:02:56]} 8. Be3 {[%clk 0:02:51]}  O-O {[%clk 0:02:56]} 9. O-O {[%clk 0:02:51]}  e5 {[%clk 0:02:56]} 10. Nb3 {[%clk 0:02:35]}  exf4 {[%clk 0:02:54]} 11. Bxf4 {[%clk 0:02:36]}  Ne5 {[%clk 0:02:53]} 12. Kh1 {[%clk 0:02:33]}  Be6 {[%clk 0:02:52]} 13. Nd4 {[%clk 0:02:32]}  Nfd7 {[%clk 0:02:47]} 14. Bg3 {[%clk 0:02:26]}  g6 {[%clk 0:02:30]} 15. Qd2 {[%clk 0:02:17]}  Bg5 {[%clk 0:02:28]} 16. Bf4 {[%clk 0:02:15]}  Bxf4 {[%clk 0:02:28]} 17. Qxf4 {[%clk 0:02:15]}  Qe7 {[%clk 0:02:25]} 18. Rad1 {[%clk 0:02:14]}  a6 {[%clk 0:02:25]} 19. Qd2 {[%clk 0:02:09]}  Rad8 {[%clk 0:01:14]} 20. Nxe6 {[%clk 0:01:52]}  Qxe6 {[%clk 0:01:05]} 21. Nd5 {[%clk 0:01:43]}  Kg7 {[%clk 0:00:59]} 22. b3 {[%clk 0:01:40]}  Nc5 {[%clk 0:00:55]} 23. Qe3 {[%clk 0:01:37]}  f6 {[%clk 0:00:46]} 24. h3 {[%clk 0:01:31]}  Rf7 {[%clk 0:00:41]} 25. Nf4 {[%clk 0:01:31]}  Qe8 {[%clk 0:00:39]} 26. Rd5 {[%clk 0:01:31]}  Ne6 {[%clk 0:00:38]} 27. Rfd1 {[%clk 0:01:26]}  Nxf4 {[%clk 0:00:38]} 28. Qxf4 {[%clk 0:01:27]}  Qe6 {[%clk 0:00:39]} 29. c4 {[%clk 0:01:24]}  b6 {[%clk 0:00:38]} 30. Qe3 {[%clk 0:01:23]}  Rb7 {[%clk 0:00:35]} 31. Qd4 {[%clk 0:01:21]}  Nf7 {[%clk 0:00:34]} 32. a4 {[%clk 0:01:20]}  a5 {[%clk 0:00:34]} 33. Bf3 {[%clk 0:01:19]}  Rbb8 {[%clk 0:00:34]} 34. Rb5 {[%clk 0:01:20]}  Qe5 {[%clk 0:00:31]} 35. Rxe5 {[%clk 0:01:19]}  dxe5 {[%clk 0:00:31]} 36. Qe3 {[%clk 0:01:18]}  Rxd1+ {[%clk 0:00:30]} 37. Bxd1 {[%clk 0:01:19]}  Rd8 {[%clk 0:00:31]} 38. Bg4 {[%clk 0:01:10]}  Rd4 {[%clk 0:00:31]} 39. Qc3 {[%clk 0:01:07]}  Nd6 {[%clk 0:00:29]} 40. Bf3 {[%clk 0:01:06]}  Nb7 {[%clk 0:00:21]} 41. b4 {[%clk 0:01:06]}  axb4 {[%clk 0:00:09]} 42. Qxb4 {[%clk 0:01:07]}  Na5 {[%clk 0:00:06]} 43. Qxb6 {[%clk 0:01:06]}  Nxc4 {[%clk 0:00:06]} 44. Qc7+ {[%clk 0:01:05]}  Kh6 {[%clk 0:00:06]} 45. a5 {[%clk 0:01:06]}  Ne3 {[%clk 0:00:05]} 46. Qc1 {[%clk 0:01:05]}  Rd3 {[%clk 0:00:03]} 47. a6 {[%clk 0:01:05]}  g5 {[%clk 0:00:03]} 48. a7 {[%clk 0:01:05]} 1-0


[Site "https://www.chess.com"]

[Event "Titled Tuesday Blitz February 22 Late 2022"]
[White "Estrada Nieto, Julian"]
[Black "Jimenez Almeida, Luis David"]
[WhiteFideId "5101018"]
[BlackFideId "22242244"]
[WhiteElo "2246"]
[BlackElo "2092"]
[Result "1-0"]
[Round "09"]
[TimeControl "180+1"]
[Date "2022.02.23"]
[WhiteClock "0:00:29"]
[BlackClock "0:00:16"]

1. e4 {[%clk 0:03:00]}  c5 {[%clk 0:02:56]} 2. Nf3 {[%clk 0:03:00]}  e6 {[%clk 0:02:53]} 3. c3 {[%clk 0:03:00]}  d5 {[%clk 0:02:52]} 4. exd5 {[%clk 0:03:00]}  Qxd5 {[%clk 0:02:51]} 5. d4 {[%clk 0:03:00]}  Nf6 {[%clk 0:02:51]} 6. Na3 {[%clk 0:02:57]}  Nc6 {[%clk 0:02:50]} 7. Be3 {[%clk 0:02:48]}  Be7 {[%clk 0:02:24]} 8. Nb5 {[%clk 0:02:44]}  Qd8 {[%clk 0:01:40]} 9. dxc5 {[%clk 0:02:43]}  Qxd1+ {[%clk 0:01:39]} 10. Rxd1 {[%clk 0:02:42]}  O-O {[%clk 0:01:39]} 11. Nd6 {[%clk 0:02:37]}  Nd5 {[%clk 0:01:35]} 12. Bb5 {[%clk 0:02:32]}  Rb8 {[%clk 0:01:27]} 13. Bd2 {[%clk 0:02:15]}  Bd7 {[%clk 0:01:21]} 14. Bxc6 {[%clk 0:01:59]}  Bxc6 {[%clk 0:01:19]} 15. Ne5 {[%clk 0:01:59]}  Be8 {[%clk 0:01:03]} 16. O-O {[%clk 0:01:46]}  f6 {[%clk 0:01:02]} 17. Nf3 {[%clk 0:01:43]}  Bg6 {[%clk 0:00:58]} 18. c4 {[%clk 0:01:42]}  Nc7 {[%clk 0:00:55]} 19. Rfe1 {[%clk 0:01:37]}  e5 {[%clk 0:00:55]} 20. Nh4 {[%clk 0:01:33]}  Bc2 {[%clk 0:00:48]} 21. Rc1 {[%clk 0:01:32]}  Ba4 {[%clk 0:00:46]} 22. Nhf5 {[%clk 0:01:31]}  Bd8 {[%clk 0:00:44]} 23. Bb4 {[%clk 0:01:25]}  Bc6 {[%clk 0:00:37]} 24. Rcd1 {[%clk 0:01:17]}  g6 {[%clk 0:00:36]} 25. Ne3 {[%clk 0:01:13]}  Kg7 {[%clk 0:00:34]} 26. b3 {[%clk 0:01:11]}  Ne6 {[%clk 0:00:33]} 27. Nd5 {[%clk 0:01:03]}  Nd4 {[%clk 0:00:29]} 28. Bc3 {[%clk 0:01:00]}  Ne6 {[%clk 0:00:28]} 29. b4 {[%clk 0:00:59]}  g5 {[%clk 0:00:26]} 30. g3 {[%clk 0:00:51]}  Kg6 {[%clk 0:00:26]} 31. b5 {[%clk 0:00:43]}  Bxd5 {[%clk 0:00:25]} 32. Rxd5 {[%clk 0:00:43]}  Bc7 {[%clk 0:00:22]} 33. Ne4 {[%clk 0:00:41]}  Rfd8 {[%clk 0:00:19]} 34. Red1 {[%clk 0:00:40]}  Rxd5 {[%clk 0:00:17]} 35. cxd5 {[%clk 0:00:40]}  Kf5 {[%clk 0:00:16]} 36. dxe6 {[%clk 0:00:35]}  Kxe4 {[%clk 0:00:16]} 37. Rd7 {[%clk 0:00:32]}  Bd8 {[%clk 0:00:15]} 38. e7 {[%clk 0:00:32]}  Bxe7 {[%clk 0:00:16]} 39. Rxe7 {[%clk 0:00:32]}  Rd8 {[%clk 0:00:17]} 40. Kg2 {[%clk 0:00:31]}  Rd3 {[%clk 0:00:16]} 41. Bb4 {[%clk 0:00:30]}  Rd4 {[%clk 0:00:16]} 42. a3 {[%clk 0:00:29]} 1-0


[Site "https://www.chess.com"]

[Event "Titled Tuesday Blitz February 22 Late 2022"]
[White "Fiorito, Fabian"]
[Black "Kohler, Aran"]
[WhiteFideId "100200"]
[BlackFideId "1002856"]
[WhiteElo "2395"]
[BlackElo "2235"]
[Result "0-1"]
[Round "09"]
[TimeControl "180+1"]
[Date "2022.02.23"]
[WhiteClock "0:00:10"]
[BlackClock "0:00:20"]

1. d4 {[%clk 0:03:00]}  Nf6 {[%clk 0:02:32]} 2. Nc3 {[%clk 0:03:00]}  d5 {[%clk 0:02:27]} 3. Bf4 {[%clk 0:03:00]}  a6 {[%clk 0:02:26]} 4. e3 {[%clk 0:03:00]}  Bf5 {[%clk 0:02:24]} 5. Bd3 {[%clk 0:02:59]}  Bxd3 {[%clk 0:02:22]} 6. cxd3 {[%clk 0:02:58]}  e6 {[%clk 0:02:22]} 7. Nf3 {[%clk 0:02:58]}  Bd6 {[%clk 0:02:18]} 8. Bg3 {[%clk 0:02:57]}  O-O {[%clk 0:02:18]} 9. Qb3 {[%clk 0:02:57]}  Nc6 {[%clk 0:02:12]} 10. O-O {[%clk 0:02:54]}  Rb8 {[%clk 0:02:10]} 11. Rac1 {[%clk 0:02:52]}  Bxg3 {[%clk 0:02:09]} 12. hxg3 {[%clk 0:02:52]}  Qd6 {[%clk 0:02:01]} 13. Rfd1 {[%clk 0:02:26]}  e5 {[%clk 0:01:57]} 14. dxe5 {[%clk 0:02:19]}  Nxe5 {[%clk 0:01:57]} 15. Nxe5 {[%clk 0:02:18]}  Qxe5 {[%clk 0:01:57]} 16. Ne2 {[%clk 0:02:18]}  c6 {[%clk 0:01:53]} 17. Nf4 {[%clk 0:02:08]}  Rfe8 {[%clk 0:01:48]} 18. Qc2 {[%clk 0:02:05]}  Rbd8 {[%clk 0:01:40]} 19. a4 {[%clk 0:01:59]}  Qg5 {[%clk 0:01:40]} 20. b4 {[%clk 0:01:51]}  Ng4 {[%clk 0:01:37]} 21. Qe2 {[%clk 0:01:51]}  Rd6 {[%clk 0:01:26]} 22. b5 {[%clk 0:01:43]}  axb5 {[%clk 0:01:23]} 23. axb5 {[%clk 0:01:43]}  Rh6 {[%clk 0:01:15]} 24. Nh3 {[%clk 0:01:42]}  Qf5 {[%clk 0:01:08]} 25. bxc6 {[%clk 0:01:37]}  bxc6 {[%clk 0:01:08]} 26. d4 {[%clk 0:01:32]}  Rhe6 {[%clk 0:00:59]} 27. Qf3 {[%clk 0:01:29]}  Qh5 {[%clk 0:00:48]} 28. Rf1 {[%clk 0:00:47]}  Rf6 {[%clk 0:00:48]} 29. Qe2 {[%clk 0:00:47]}  Ree6 {[%clk 0:00:38]} 30. Ra1 {[%clk 0:00:46]}  h6 {[%clk 0:00:33]} 31. Qc2 {[%clk 0:00:43]}  Rg6 {[%clk 0:00:26]} 32. Rfb1 {[%clk 0:00:39]}  Kh7 {[%clk 0:00:26]} 33. Nf4 {[%clk 0:00:27]}  Qh2+ {[%clk 0:00:24]} 34. Kf1 {[%clk 0:00:28]}  Rxe3 {[%clk 0:00:22]} 35. Qxg6+ {[%clk 0:00:13]}  fxg6 {[%clk 0:00:20]} 36. fxe3 {[%clk 0:00:13]}  Nxe3+ {[%clk 0:00:20]} 37. Kf2 {[%clk 0:00:14]}  Nf5 {[%clk 0:00:19]} 38. Kf3 {[%clk 0:00:15]}  Qxg3+ {[%clk 0:00:18]} 39. Ke2 {[%clk 0:00:14]}  Qe3+ {[%clk 0:00:19]} 40. Kf1 {[%clk 0:00:14]}  Qxf4+ {[%clk 0:00:19]} 41. Kg1 {[%clk 0:00:14]}  Qxd4+ {[%clk 0:00:20]} 42. Kh1 {[%clk 0:00:15]}  Qh4+ {[%clk 0:00:20]} 43. Kg1 {[%clk 0:00:15]}  Qg3 {[%clk 0:00:20]} 44. Ra2 {[%clk 0:00:15]}  Ne3 {[%clk 0:00:21]} 45. Rbb2 {[%clk 0:00:14]}  d4 {[%clk 0:00:21]} 46. Rf2 {[%clk 0:00:15]}  d3 {[%clk 0:00:21]} 47. Rf3 {[%clk 0:00:16]}  Qe1+ {[%clk 0:00:20]} 48. Kh2 {[%clk 0:00:16]}  Ng4+ {[%clk 0:00:21]} 49. Kh3 {[%clk 0:00:16]}  Nf6 {[%clk 0:00:21]} 50. Rxd3 {[%clk 0:00:16]}  Qe4 {[%clk 0:00:21]} 51. Rad2 {[%clk 0:00:15]}  Qf4 {[%clk 0:00:21]} 52. Rd4 {[%clk 0:00:15]}  Qf5+ {[%clk 0:00:21]} 53. g4 {[%clk 0:00:15]}  Qf3+ {[%clk 0:00:21]} 54. Kh2 {[%clk 0:00:14]}  Nxg4+ {[%clk 0:00:21]} 55. Kg1 {[%clk 0:00:15]}  Qg3+ {[%clk 0:00:21]} 56. Kf1 {[%clk 0:00:15]}  Qf3+ {[%clk 0:00:21]} 57. Kg1 {[%clk 0:00:16]}  Qg3+ {[%clk 0:00:21]} 58. Kf1 {[%clk 0:00:16]}  Ne3+ {[%clk 0:00:21]} 59. Ke2 {[%clk 0:00:16]}  Nf5 {[%clk 0:00:22]} 60. R4d3 {[%clk 0:00:17]}  Qg4+ {[%clk 0:00:21]} 61. Ke1 {[%clk 0:00:17]}  g5 {[%clk 0:00:21]} 62. Re2 {[%clk 0:00:14]}  Qc4 {[%clk 0:00:21]} 63. Kd2 {[%clk 0:00:15]}  Nd4 {[%clk 0:00:21]} 64. Re4 {[%clk 0:00:15]}  Qc2+ {[%clk 0:00:22]} 65. Ke3 {[%clk 0:00:16]}  Nf5+ {[%clk 0:00:20]} 66. Kf3 {[%clk 0:00:08]}  Qxd3+ {[%clk 0:00:20]} 67. Kg4 {[%clk 0:00:09]}  Qxe4+ {[%clk 0:00:21]} 68. Kh5 {[%clk 0:00:10]}  Qh4# {[%clk 0:00:20]} 0-1


[Site "https://www.chess.com"]

[Event "Titled Tuesday Blitz February 22 Late 2022"]
[White "Gatterer, Florian"]
[Black "Kopczynski, Michal"]
[WhiteFideId "811688"]
[BlackFideId "1124200"]
[WhiteElo "2218"]
[BlackElo "2235"]
[Result "0-1"]
[Round "09"]
[TimeControl "180+1"]
[Date "2022.02.23"]
[WhiteClock "0:00:57"]
[BlackClock "0:00:37"]

1. e4 {[%clk 0:03:00]}  b6 {[%clk 0:02:59]} 2. d4 {[%clk 0:02:59]}  Bb7 {[%clk 0:02:59]} 3. Bd3 {[%clk 0:03:00]}  e6 {[%clk 0:03:00]} 4. Qe2 {[%clk 0:03:00]}  Nf6 {[%clk 0:03:00]} 5. e5 {[%clk 0:02:59]}  Bxg2 {[%clk 0:02:56]} 6. exf6 {[%clk 0:02:59]}  Bxh1 {[%clk 0:02:56]} 7. f3 {[%clk 0:03:00]}  Qxf6 {[%clk 0:02:53]} 8. Be3 {[%clk 0:02:58]}  Nc6 {[%clk 0:02:48]} 9. c3 {[%clk 0:02:57]}  Bd6 {[%clk 0:02:47]} 10. Nd2 {[%clk 0:02:51]}  Qh4+ {[%clk 0:02:43]} 11. Bf2 {[%clk 0:02:51]}  Qxh2 {[%clk 0:02:41]} 12. Ne4 {[%clk 0:02:41]}  Bf4 {[%clk 0:02:33]} 13. Kd1 {[%clk 0:02:23]}  O-O-O {[%clk 0:02:24]} 14. a4 {[%clk 0:02:22]}  d5 {[%clk 0:02:19]} 15. Ba6+ {[%clk 0:02:13]}  Kb8 {[%clk 0:02:18]} 16. Qb5 {[%clk 0:01:53]}  Ne7 {[%clk 0:02:17]} 17. a5 {[%clk 0:01:44]}  dxe4 {[%clk 0:02:09]} 18. axb6 {[%clk 0:01:44]}  cxb6 {[%clk 0:02:05]} 19. Bb7 {[%clk 0:01:41]}  Nc8 {[%clk 0:00:41]} 20. Qa6 {[%clk 0:00:58]}  Qxf2 {[%clk 0:00:38]} 21. Bxc8 {[%clk 0:00:57]}  Qd2# {[%clk 0:00:37]} 0-1


[Site "https://www.chess.com"]

[Event "Titled Tuesday Blitz February 22 Late 2022"]
[White "Gimenez Aguirre, Alejo Ismael"]
[Black "Ansh M Shah"]
[WhiteFideId "32041667"]
[BlackFideId "25033379"]
[WhiteElo "2031"]
[BlackElo "1819"]
[Result "0-1"]
[Round "09"]
[TimeControl "180+1"]
[Date "2022.02.23"]
[WhiteClock "0:01:33"]
[BlackClock "0:00:09"]

1. e4 {[%clk 0:03:00]}  c6 {[%clk 0:02:59]} 2. d4 {[%clk 0:02:59]}  d5 {[%clk 0:03:00]} 3. Nd2 {[%clk 0:02:58]}  dxe4 {[%clk 0:03:00]} 4. Nxe4 {[%clk 0:02:59]}  Nf6 {[%clk 0:03:01]} 5. Nxf6+ {[%clk 0:02:57]}  exf6 {[%clk 0:03:02]} 6. Nf3 {[%clk 0:02:58]}  Bf5 {[%clk 0:03:02]} 7. Bd3 {[%clk 0:02:57]}  Bxd3 {[%clk 0:03:03]} 8. Qxd3 {[%clk 0:02:58]}  Bd6 {[%clk 0:03:03]} 9. O-O {[%clk 0:02:58]}  O-O {[%clk 0:03:04]} 10. h3 {[%clk 0:02:59]}  Nd7 {[%clk 0:03:04]} 11. c3 {[%clk 0:02:59]}  Nb6 {[%clk 0:03:01]} 12. b3 {[%clk 0:02:57]}  Qd7 {[%clk 0:03:01]} 13. c4 {[%clk 0:02:57]}  Rad8 {[%clk 0:02:57]} 14. Bb2 {[%clk 0:02:57]}  Bb8 {[%clk 0:02:51]} 15. a4 {[%clk 0:02:54]}  Na8 {[%clk 0:02:47]} 16. Rfe1 {[%clk 0:02:52]}  Nc7 {[%clk 0:02:47]} 17. Re2 {[%clk 0:02:51]}  Ne6 {[%clk 0:02:45]} 18. Qc2 {[%clk 0:02:46]}  Nf4 {[%clk 0:02:37]} 19. Re4 {[%clk 0:02:44]}  Qf5 {[%clk 0:02:30]} 20. Rae1 {[%clk 0:02:43]}  Qg6 {[%clk 0:02:20]} 21. Nh4 {[%clk 0:02:36]}  Qg5 {[%clk 0:01:34]} 22. Ba3 {[%clk 0:02:29]}  Qxh4 {[%clk 0:00:30]} 23. Bxf8 {[%clk 0:02:27]}  Rxf8 {[%clk 0:00:29]} 24. g3 {[%clk 0:02:27]}  Qg5 {[%clk 0:00:20]} 25. h4 {[%clk 0:02:24]}  Qg4 {[%clk 0:00:19]} 26. Rxf4 {[%clk 0:02:15]}  Bxf4 {[%clk 0:00:17]} 27. Qe4 {[%clk 0:02:12]}  g5 {[%clk 0:00:14]} 28. d5 {[%clk 0:01:58]}  cxd5 {[%clk 0:00:13]} 29. cxd5 {[%clk 0:01:59]}  h5 {[%clk 0:00:11]} 30. Qc4 {[%clk 0:01:43]}  Bd6 {[%clk 0:00:09]} 31. Re4 {[%clk 0:01:41]}  Qd7 {[%clk 0:00:06]} 32. hxg5 {[%clk 0:01:38]}  fxg5 {[%clk 0:00:06]} 33. Qe2 {[%clk 0:01:38]}  Kg7 {[%clk 0:00:05]} 34. Qxh5 {[%clk 0:01:38]}  Qf5 {[%clk 0:00:05]} 35. Rg4 {[%clk 0:01:37]}  f6 {[%clk 0:00:05]} 36. Rd4 {[%clk 0:01:32]}  Rh8 {[%clk 0:00:05]} 37. Qe2 {[%clk 0:01:31]}  Be5 {[%clk 0:00:05]} 38. Rd1 {[%clk 0:01:31]}  Qd7 {[%clk 0:00:05]} 39. d6 {[%clk 0:01:30]}  Qh3 {[%clk 0:00:05]} 40. Qf3 {[%clk 0:01:30]}  Qh2+ {[%clk 0:00:06]} 41. Kf1 {[%clk 0:01:31]}  Qh1+ {[%clk 0:00:06]} 42. Qxh1 {[%clk 0:01:31]}  Rxh1+ {[%clk 0:00:07]} 43. Ke2 {[%clk 0:01:32]}  Rxd1 {[%clk 0:00:08]} 44. Kxd1 {[%clk 0:01:33]}  Bxd6 {[%clk 0:00:09]} 0-1


[Site "https://www.chess.com"]

[Event "Titled Tuesday Blitz February 22 Late 2022"]
[White "Golubenko, Valentina"]
[Black "Mikheev, Stanislav"]
[WhiteFideId "4501993"]
[BlackFideId "4135920"]
[WhiteElo "2164"]
[BlackElo "2249"]
[Result "0-1"]
[Round "09"]
[TimeControl "180+1"]
[Date "2022.02.23"]
[WhiteClock "0:00:01"]
[BlackClock "0:00:09"]

1. d4 {[%clk 0:02:55]}  Nf6 {[%clk 0:02:59]} 2. g3 {[%clk 0:02:54]}  g6 {[%clk 0:02:59]} 3. Bg2 {[%clk 0:02:53]}  Bg7 {[%clk 0:03:00]} 4. c4 {[%clk 0:02:52]}  d5 {[%clk 0:02:59]} 5. cxd5 {[%clk 0:02:51]}  Nxd5 {[%clk 0:03:00]} 6. e4 {[%clk 0:02:51]}  Nb6 {[%clk 0:02:58]} 7. Nf3 {[%clk 0:02:49]}  c5 {[%clk 0:02:51]} 8. d5 {[%clk 0:02:47]}  e6 {[%clk 0:02:48]} 9. Nc3 {[%clk 0:02:21]}  exd5 {[%clk 0:02:43]} 10. Nxd5 {[%clk 0:02:19]}  O-O {[%clk 0:02:24]} 11. O-O {[%clk 0:02:19]}  Nc6 {[%clk 0:02:18]} 12. Bg5 {[%clk 0:02:15]}  f6 {[%clk 0:02:09]} 13. Bf4 {[%clk 0:02:14]}  Ne5 {[%clk 0:02:01]} 14. Nxe5 {[%clk 0:01:59]}  fxe5 {[%clk 0:02:02]} 15. Be3 {[%clk 0:02:00]}  Nxd5 {[%clk 0:01:54]} 16. Qxd5+ {[%clk 0:01:45]}  Qxd5 {[%clk 0:01:53]} 17. exd5 {[%clk 0:01:45]}  b6 {[%clk 0:01:44]} 18. d6 {[%clk 0:01:44]}  Rb8 {[%clk 0:01:43]} 19. Rad1 {[%clk 0:01:30]}  Be6 {[%clk 0:01:28]} 20. d7 {[%clk 0:00:55]}  Rbd8 {[%clk 0:01:26]} 21. Bc6 {[%clk 0:00:55]}  Bf6 {[%clk 0:01:12]} 22. Rd6 {[%clk 0:00:48]}  Kf7 {[%clk 0:01:11]} 23. Rfd1 {[%clk 0:00:46]}  Bxa2 {[%clk 0:00:55]} 24. Ra1 {[%clk 0:00:41]}  Ke7 {[%clk 0:00:45]} 25. Rd2 {[%clk 0:00:35]}  Be6 {[%clk 0:00:42]} 26. Rxa7 {[%clk 0:00:33]}  e4 {[%clk 0:00:37]} 27. Bxe4 {[%clk 0:00:28]}  Rxd7 {[%clk 0:00:32]} 28. Rdxd7+ {[%clk 0:00:26]}  Bxd7 {[%clk 0:00:33]} 29. Bc6 {[%clk 0:00:26]}  Rd8 {[%clk 0:00:33]} 30. b4 {[%clk 0:00:25]}  Kd6 {[%clk 0:00:22]} 31. Bxd7 {[%clk 0:00:22]}  Rxd7 {[%clk 0:00:23]} 32. bxc5+ {[%clk 0:00:22]}  bxc5 {[%clk 0:00:21]} 33. Bxc5+ {[%clk 0:00:18]}  Ke6 {[%clk 0:00:22]} 34. Ra6+ {[%clk 0:00:16]}  Kf7 {[%clk 0:00:19]} 35. Kg2 {[%clk 0:00:17]}  Rc7 {[%clk 0:00:18]} 36. Be3 {[%clk 0:00:17]}  Rd7 {[%clk 0:00:18]} 37. g4 {[%clk 0:00:17]}  Rc7 {[%clk 0:00:17]} 38. g5 {[%clk 0:00:17]}  Be5 {[%clk 0:00:17]} 39. h4 {[%clk 0:00:16]}  Rd7 {[%clk 0:00:16]} 40. Kf3 {[%clk 0:00:17]}  Bb8 {[%clk 0:00:15]} 41. Kg4 {[%clk 0:00:16]}  Re7 {[%clk 0:00:15]} 42. Rb6 {[%clk 0:00:14]}  Re4+ {[%clk 0:00:15]} 43. Kf3 {[%clk 0:00:13]}  Re8 {[%clk 0:00:14]} 44. Rb7+ {[%clk 0:00:13]}  Kg8 {[%clk 0:00:13]} 45. Bd4 {[%clk 0:00:14]}  Be5 {[%clk 0:00:12]} 46. Bxe5 {[%clk 0:00:12]}  Rxe5 {[%clk 0:00:12]} 47. Kf4 {[%clk 0:00:12]}  Rf5+ {[%clk 0:00:12]} 48. Kg3 {[%clk 0:00:12]}  Rf8 {[%clk 0:00:10]} 49. f4 {[%clk 0:00:12]}  Rf5 {[%clk 0:00:10]} 50. Kg4 {[%clk 0:00:12]}  Rf8 {[%clk 0:00:10]} 51. Rb4 {[%clk 0:00:11]}  Rf5 {[%clk 0:00:10]} 52. h5 {[%clk 0:00:12]}  Rf8 {[%clk 0:00:09]} 53. h6 {[%clk 0:00:11]}  Rf7 {[%clk 0:00:08]} 54. Rb8+ {[%clk 0:00:11]}  Rf8 {[%clk 0:00:08]} 55. Rb7 {[%clk 0:00:12]}  Rf7 {[%clk 0:00:07]} 56. Rxf7 {[%clk 0:00:11]}  Kxf7 {[%clk 0:00:08]} 57. f5 {[%clk 0:00:11]}  gxf5+ {[%clk 0:00:07]} 58. Kxf5 {[%clk 0:00:12]}  Kg8 {[%clk 0:00:06]} 59. Kf6 {[%clk 0:00:11]}  Kf8 {[%clk 0:00:06]} 60. Ke6 {[%clk 0:00:10]}  Kg8 {[%clk 0:00:06]} 61. Ke7 {[%clk 0:00:10]}  Kh8 {[%clk 0:00:06]} 62. Ke6 {[%clk 0:00:09]}  Kg8 {[%clk 0:00:06]} 63. Kf6 {[%clk 0:00:09]}  Kh8 {[%clk 0:00:06]} 64. Kf5 {[%clk 0:00:08]}  Kg8 {[%clk 0:00:07]} 65. Ke6 {[%clk 0:00:05]}  Kh8 {[%clk 0:00:08]} 66. Kf6 {[%clk 0:00:03]}  Kg8 {[%clk 0:00:08]} 67. g6 {[%clk 0:00:02]}  Kh8 {[%clk 0:00:09]} 68. g7+ {[%clk 0:00:01]}  Kg8 {[%clk 0:00:09]} 0-1


[Site "https://www.chess.com"]